fUSD/lending_fUSD_20260329
["ID","MTS","AMOUNT","RATE_DAILY","PERIOD"]
[419052157,1774813840093,-1441.0,0.00010113,2]
[419052159,1774813840103,-536.0,0.00010133,2]
[419052161,1774813840112,-166.66,0.00010151,2]
[419052163,1774813840122,-275.0,0.00010154,2]
[419052165,1774813840132,-1167.0,0.00010174,2]
[419052167,1774813840141,-368.0,0.00010194,2]
[419052169,1774813840151,-5534.0,0.000102,3]
[419052171,1774813840160,-1123.0,0.00010214,2]
[419052173,1774813840170,-510.0,0.00010234,2]
[419052175,1774813840180,-1142.0,0.00010254,2]
[419052177,1774813840189,-182.0,0.00010274,2]
[419052179,1774813840198,-1620.0,0.00010295,2]
[419052181,1774813840207,-1000.0,0.00010341,2]
[419052183,1774813840217,-1000.0,0.00010341,2]
[419052185,1774813840227,-500.0,0.00010341,2]
[419052187,1774813840237,-592.36520232,0.00010341,2]
[419052189,1774813840246,-1000.0,0.00010341,2]
[419052191,1774813840255,-506.42772245,0.00010341,2]
[419052193,1774813840266,-1000.0,0.00010341,2]
[419052195,1774813840276,-1000.0,0.00010341,2]
[419052197,1774813840286,-1001.58195524,0.00010341,2]
[419052199,1774813840296,-1000.0,0.00010341,2]
[419052201,1774813840305,-1907.3711274,0.00010358,2]
[419052203,1774813840315,-553741.4418677,0.00010358,2]
[419052206,1774813840325,-973.92,0.00010363,2]
[419052208,1774813840334,-500.0,0.00010364,2]
[419052210,1774813840343,-500.0,0.00010373,2]
[419052212,1774813840352,-500.0,0.00010373,2]
[419052214,1774813840361,-500.0,0.00010373,2]
[419052216,1774813840370,-500.0,0.00010373,2]
[419052218,1774813840379,-780.0,0.00010384,2]
[419052220,1774813840389,-600.0,0.00010395,2]
[419052222,1774813840399,-545.4146401,0.00010421,2]
[419052224,1774813840408,-1000.0,0.00010421,2]
[419052226,1774813840417,-166.66,0.00010455,2]
[419052228,1774813840426,-968.84,0.00010467,2]
[419052230,1774813840436,-5534.0,0.000105,5]
[419052232,1774813840445,-200.0,0.00010548,2]
[419052234,1774813840455,-1438.09495884,0.00010548,2]
[419052236,1774813840465,-2750.6,0.00010582,2]
[419052238,1774813840474,-2750.6,0.00010582,2]
[419052240,1774813840484,-2750.6,0.00010582,2]
[419052242,1774813840493,-2750.6,0.00010582,2]
[419052243,1774813840503,-2750.6,0.00010582,2]
[419052245,1774813840513,-2750.6,0.00010582,2]
[419052247,1774813840522,-2750.6,0.00010582,2]
[419052249,1774813840533,-2750.6,0.00010582,2]
[419052251,1774813840543,-2750.6,0.00010582,2]
[419052253,1774813840552,-1100.0,0.00010588,2]
[419052279,1774813840907,-973.92,0.00010637,2]
[419052281,1774813840917,-500.0,0.00010638,2]
[419052283,1774813840927,-1680.0,0.00010684,2]
[419052285,1774813840936,-600.0,0.00010685,2]
[419052287,1774813840946,-250.0,0.00010685,2]
[419052288,1774813840955,-255.0,0.00010687,2]
[419052290,1774813840964,-250.0,0.00010688,2]
[419052292,1774813840974,-430.97,0.00010731,30]
[419052294,1774813840984,-166.66,0.0001076,2]
[419052297,1774813840994,-1868.83,0.00010769,2]
[419052299,1774813841004,-189.38,0.00010794,2]
[419052301,1774813841013,-565.84,0.00010853,2]
[419052303,1774813841023,-500.0,0.00010888,2]
[419052304,1774813841032,-1003.28384066,0.00010888,2]
[419052307,1774813841043,-1500.0,0.00010888,2]
[419052309,1774813841053,-1500.0,0.00010888,2]
[419052311,1774813841062,-150.0,0.000109,2]
[419052313,1774813841071,-9606.51051487,0.000109,2]
[419052314,1774813841080,-9606.5105148,0.000109,2]
[419052316,1774813841090,-973.92,0.00010911,2]
[419052318,1774813841099,-500.0,0.00010912,2]
[419052320,1774813841109,-1000.0,0.00010921,2]
[419052322,1774813841119,-1000.0,0.00010921,2]
[419052325,1774813841130,-1000.0,0.00010921,2]
[419052327,1774813841140,-1000.0,0.00010921,2]
[419052328,1774813841149,-737.08,0.00010946,2]
[419052330,1774813841158,-500.0,0.00010959,2]
[419052332,1774813841168,-150.0,0.00010959,2]
[419052334,1774813841178,-197.01734564,0.00010968,2]
[419052336,1774813841188,-3282.16832312,0.00011,2]
[419052338,1774813841198,-1600.0,0.00011039,2]
[419052340,1774813841209,-200.0,0.00011096,2]
[419052342,1774813841218,-1491.30447232,0.00011096,2]
[419052344,1774813841228,-27906.65487176,0.00011099,2]
[419052346,1774813841237,-27906.65487176,0.00011099,2]
[419052348,1774813841247,-28494.45388379,0.00011099,2]
[419052350,1774813841257,-28494.45388375,0.00011099,2]
[419052353,1774813841267,-28494.45388375,0.00011099,2]
[419052354,1774813841276,-28494.45388375,0.00011099,2]
[419052356,1774813841286,-28494.45388375,0.00011099,2]
[419052358,1774813841296,-28494.45388375,0.00011099,2]
[419052360,1774813841308,-28494.45388375,0.00011099,2]
[419052362,1774813841318,-28494.45388375,0.00011099,2]
[419052364,1774813841327,-28494.45388375,0.00011099,2]
[419052366,1774813841337,-28494.45388375,0.00011099,2]
[419052368,1774813841346,-27906.65487176,0.00011111,2]
[419052370,1774813841355,-1761.46,0.00011172,2]
[419052372,1774813841365,-973.92,0.00011185,2]
[419052374,1774813841374,-183.44803,0.00011335,2]
[419052376,1774813841384,-358.87247,0.00011335,2]
[419052378,1774813841393,-4055.820143,0.00011335,2]
[419052380,1774813841403,-1485.162169,0.00011335,2]
[419052382,1774813841412,-675.970023,0.00011335,2]
[419052384,1774813841422,-4483.937234,0.00011335,2]
[419052386,1774813841432,-4455.48651,0.00011335,2]
[419052388,1774813841441,-861.93,0.00011386,30]
[419052390,1774813841450,-2000.0,0.00011436,2]
[419052392,1774813841460,-500.0,0.00011436,2]
[419052394,1774813841469,-973.92,0.00011459,2]
[419052396,1774813841479,-200.06015101,0.00011468,2]
[419052398,1774813841488,-1500.0,0.00011468,2]
[419052400,1774813841498,-1500.0,0.00011468,2]
[419052402,1774813841507,-9606.5105148,0.00011481,2]
[419052404,1774813841516,-2467.7,0.00011507,2]
[419052406,1774813841525,-181.95612017,0.00011556,2]
[419052408,1774813841534,-1907.3711274,0.00011565,2]
[419052410,1774813841544,-553741.4418677,0.00011566,2]
[419052412,1774813841554,-27906.65487176,0.00011576,2]
[419052414,1774813841563,-200.0,0.00011644,2]
[419052416,1774813841572,-1546.48273779,0.00011644,2]
[419052418,1774813841581,-973.92,0.00011733,2]
[419052420,1774813841591,-2351.0,0.00011753,2]
[419052422,1774813841600,-433.0,0.00011756,2]
[419052424,1774813841610,-1500.0,0.000119,4]
[419052426,1774813841619,-1501.46003451,0.00011984,2]
[419052428,1774813841629,-200.0,0.00012,2]
[419052430,1774813841639,-2000.0,0.00012016,2]
[419052432,1774813841649,-2000.0,0.00012016,2]
[419052434,1774813841658,-27906.65487176,0.0001204,2]
[419052436,1774813841667,-1292.9,0.00012041,30]
[419052438,1774813841677,-3217.38,0.00012055,2]
[419052440,1774813841686,-200.0,0.00012192,2]
[419052442,1774813841696,-1603.70259909,0.00012192,2]
[419052444,1774813841705,-196.8693,0.000122,2]
[419052446,1774813841714,-1600.0,0.00012265,2]
[419052448,1774813841723,-9606.5105148,0.00012365,2]
[419052450,1774813841732,-27906.65487176,0.00012505,2]
[419052452,1774813841742,-2500.0,0.00012564,2]
[419052454,1774813841752,-509.58099597,0.00012564,2]
[419052456,1774813841761,-1723.87,0.00012696,30]
[419052458,1774813841771,-1000.0,0.00012737,2]
[419052460,1774813841780,-151.0,0.00012739,2]
[419052462,1774813841790,-200.0,0.0001274,2]
[419052464,1774813841799,-1663.03959526,0.0001274,2]
[419052466,1774813841809,-1907.3711274,0.00012773,2]
[419052468,1774813841818,-553741.4418677,0.00012775,2]
[419052470,1774813841828,-224.32485354,0.00012797,2]
[419052472,1774813841837,-3795.23329005,0.00012797,2]
[419052474,1774813841848,-250.0,0.00012835,2]
[419052476,1774813841857,-1000.0,0.00012856,2]
[419052478,1774813841866,-3292.0,0.00012928,2]
[419052480,1774813841875,-736.0,0.00012931,2]
[419052482,1774813841886,-27906.65487176,0.0001297,2]
[419052484,1774813841895,-250.0,0.00013,2]
[419052486,1774813841904,-3000.0,0.00013112,2]
[419052488,1774813841914,-1000.0,0.00013122,2]
[419052489,1774813841923,-600.0,0.0001315,2]
[419052491,1774813841933,-1000.0,0.0001322,2]
[419052493,1774813841943,-9606.5105148,0.00013249,2]
[419052496,1774813841953,-200.0,0.00013288,2]
[419052497,1774813841964,-1724.57206028,0.00013288,2]
[419052499,1774813841974,-1000.0,0.00013309,2]
[419052501,1774813841984,-500.0,0.00013332,2]
[419052503,1774813841994,-523.92140392,0.00013341,2]
[419052506,1774813842011,-2154.83,0.00013351,30]
[419052508,1774813842022,-189.38,0.00013376,2]
[419052510,1774813842033,-500.0,0.00013377,2]
[419052512,1774813842044,-3240.0,0.00013425,2]
[419052515,1774813842056,-27906.65487176,0.00013435,2]
[419052517,1774813842065,-1600.0,0.00013492,2]
[419052519,1774813842075,-10000.0,0.000135,2]
[419052521,1774813842085,-258.3836,0.000136,2]
[419052523,1774813842094,-5466.0,0.000136,2]
[419052525,1774813842104,-2449.88014419,0.0001366,2]
[419052526,1774813842115,-500.0,0.00013698,2]
[419052529,1774813842125,-500.0,0.00013698,2]
[419052531,1774813842135,-500.0,0.00013698,2]
[419052533,1774813842145,-500.0,0.00013698,2]
[419052535,1774813842155,-315.34588043,0.00013698,2]
[419052537,1774813842165,-500.0,0.00013698,2]
[419052539,1774813842174,-500.0,0.00013698,2]
[419052541,1774813842184,-500.0,0.00013698,2]
[419052543,1774813842194,-500.0,0.00013698,2]
[419052545,1774813842204,-500.0,0.00013698,2]
[419052547,1774813842215,-500.0,0.00013698,2]
[419052549,1774813842224,-500.0,0.00013698,2]
[419052551,1774813842235,-500.0,0.00013698,2]
[419052553,1774813842245,-500.0,0.00013698,2]
[419052555,1774813842256,-500.0,0.00013698,2]
[419052557,1774813842265,-500.0,0.00013698,2]
[419052559,1774813842275,-500.0,0.00013698,2]
[419052561,1774813842285,-502.62451474,0.00013698,2]
[419052563,1774813842294,-500.0,0.00013698,2]
[419052565,1774813842304,-500.0,0.00013698,2]
[419052567,1774813842315,-500.0,0.00013698,2]
[419052569,1774813842325,-500.0,0.00013698,2]
[419052571,1774813842335,-500.0,0.00013698,2]
[419052573,1774813842345,-500.0,0.00013698,2]
[419052575,1774813842355,-500.0,0.00013698,2]
[419052578,1774813842366,-500.0,0.00013698,2]
[419052580,1774813842376,-500.0,0.00013698,2]
[419052582,1774813842386,-500.0,0.00013698,2]
[419052584,1774813842396,-500.0,0.00013698,2]
[419052586,1774813842406,-500.0,0.00013698,2]
[419052588,1774813842416,-500.0,0.00013698,2]
[419052590,1774813842425,-500.0,0.00013698,2]
[419052592,1774813842435,-500.0,0.00013698,2]
[419052594,1774813842445,-500.0,0.00013698,2]
[419052596,1774813842454,-500.0,0.00013698,2]
[419052598,1774813842464,-500.0,0.00013698,2]
[419052600,1774813842474,-500.0,0.00013698,2]
[419052601,1774813842485,-500.0,0.00013698,2]
[419052603,1774813842494,-500.0,0.00013698,2]
[419052605,1774813842503,-420.74775151,0.00013698,2]
[419052608,1774813842519,-500.0,0.00013698,2]
[419052610,1774813842529,-500.0,0.00013698,2]
[419052612,1774813842539,-500.0,0.00013698,2]
[419052614,1774813842549,-500.0,0.00013698,2]
[419052616,1774813842560,-500.0,0.00013698,2]
[419052618,1774813842571,-500.0,0.00013698,2]
[419052620,1774813842580,-500.0,0.00013698,2]
[419052622,1774813842590,-500.0,0.00013698,2]
[419052625,1774813842601,-500.0,0.00013698,2]
[419052627,1774813842611,-500.0,0.00013698,2]
[419052629,1774813842620,-500.0,0.00013698,2]
[419052631,1774813842630,-500.0,0.00013698,2]
[419052633,1774813842640,-500.0,0.00013698,2]
[419052635,1774813842650,-500.0,0.00013698,2]
[419052637,1774813842661,-500.0,0.00013698,2]
[419052639,1774813842670,-500.0,0.00013698,2]
[419052641,1774813842680,-500.0,0.00013698,2]
[419052643,1774813842690,-500.0,0.00013698,2]
[419052645,1774813842700,-500.0,0.00013698,2]
[419052647,1774813842709,-500.0,0.00013698,2]
[419052649,1774813842720,-500.0,0.00013698,2]
[419052651,1774813842730,-500.0,0.00013698,2]
[419052653,1774813842740,-500.0,0.00013698,2]
[419052655,1774813842750,-500.0,0.00013698,2]
[419052656,1774813842760,-500.0,0.00013698,2]
[419052658,1774813842770,-500.0,0.00013698,2]
[419052661,1774813842781,-500.0,0.00013698,2]
[419052663,1774813842791,-500.0,0.00013698,2]
[419052664,1774813842800,-500.0,0.00013698,2]
[419052665,1774813842810,-500.0,0.00013698,2]
[419052666,1774813842820,-332.17600438,0.00013698,2]
[419052667,1774813842830,-500.0,0.00013698,2]
[419052668,1774813842840,-500.0,0.00013698,2]
[419052669,1774813842850,-500.0,0.00013698,2]
[419052670,1774813842861,-500.0,0.00013698,2]
[419052671,1774813842871,-500.0,0.00013698,2]
[419052672,1774813842881,-500.0,0.00013698,2]
[419052674,1774813842892,-500.0,0.00013698,2]
[419052676,1774813842902,-500.0,0.00013698,2]
[419052678,1774813842913,-500.0,0.00013698,2]
[419052681,1774813842923,-500.0,0.00013698,2]
[419052682,1774813842934,-539.86096787,0.00013698,2]
[419052685,1774813842944,-500.0,0.00013698,2]
[419052687,1774813842954,-500.0,0.00013698,2]
[419052689,1774813842964,-500.0,0.00013698,2]
[419052691,1774813842975,-500.0,0.00013698,2]
[419052693,1774813842985,-500.0,0.00013698,2]
[419052694,1774813842995,-500.0,0.00013698,2]
[419052696,1774813843005,-500.0,0.00013698,2]
[419052699,1774813843018,-500.0,0.00013698,2]
[419052701,1774813843028,-500.0,0.00013698,2]
[419052703,1774813843040,-500.0,0.00013698,2]
[419052705,1774813843051,-600.87743374,0.00013698,2]
[419052707,1774813843062,-272.52626615,0.00013698,2]
[419052709,1774813843072,-150.71545743,0.00013698,2]
[419052711,1774813843083,-500.0,0.00013698,2]
[419052713,1774813843093,-500.0,0.00013698,2]
[419052715,1774813843104,-500.0,0.00013698,2]
[419052717,1774813843116,-500.0,0.00013698,2]
[419052720,1774813843127,-500.0,0.00013698,2]
[419052722,1774813843138,-500.0,0.00013698,2]
[419052724,1774813843148,-500.0,0.00013698,2]
[419052726,1774813843159,-500.0,0.00013698,2]
[419052728,1774813843169,-500.0,0.00013698,2]
[419052730,1774813843178,-500.0,0.00013698,2]
[419052732,1774813843189,-500.0,0.00013698,2]
[419052734,1774813843198,-500.0,0.00013698,2]
[419052736,1774813843211,-500.0,0.00013698,2]
[419052738,1774813843221,-500.0,0.00013698,2]
[419052740,1774813843232,-500.0,0.00013698,2]
[419052742,1774813843243,-500.0,0.00013698,2]
[419052744,1774813843253,-500.0,0.00013698,2]
[419052746,1774813843263,-500.0,0.00013698,2]
[419052748,1774813843273,-500.0,0.00013698,2]
[419052750,1774813843283,-500.0,0.00013698,2]
[419052752,1774813843292,-500.0,0.00013698,2]
[419052754,1774813843303,-173.34235598,0.00013698,2]
[419052756,1774813843313,-500.0,0.00013698,2]
[419052758,1774813843323,-500.0,0.00013698,2]
[419052760,1774813843334,-500.0,0.00013698,2]
[419052762,1774813843344,-500.0,0.00013698,2]
[419052764,1774813843355,-500.0,0.00013698,2]
[419052766,1774813843365,-500.0,0.00013698,2]
[419052769,1774813843376,-500.0,0.00013698,2]
[419052771,1774813843386,-500.0,0.00013698,2]
[419052773,1774813843396,-500.0,0.00013698,2]
[419052775,1774813843406,-500.0,0.00013698,2]
[419052778,1774813843416,-500.0,0.00013698,2]
[419052781,1774813843426,-500.0,0.00013698,2]
[419052783,1774813843436,-454.01718216,0.00013698,2]
[419052785,1774813843446,-517.55,0.00013698,2]
[419052787,1774813843457,-517.55,0.00013698,2]
[419052789,1774813843467,-517.55,0.00013698,2]
[419052791,1774813843477,-517.55,0.00013698,2]
[419052793,1774813843488,-517.55,0.00013698,2]
[419052795,1774813843498,-517.55,0.00013698,2]
[419052797,1774813843508,-517.55,0.00013698,2]
[419052799,1774813843518,-517.55,0.00013698,2]
[419052801,1774813843529,-517.55,0.00013698,2]
[419052803,1774813843538,-517.55,0.00013698,2]
[419052805,1774813843549,-517.55,0.00013698,2]
[419052807,1774813843559,-517.55,0.00013698,2]
[419052809,1774813843570,-517.55,0.00013698,2]
[419052811,1774813843580,-517.55,0.00013698,2]
[419052813,1774813843591,-517.55,0.00013698,2]
[419052815,1774813843601,-517.55,0.00013698,2]
[419052817,1774813843612,-517.55,0.00013698,2]
[419052819,1774813843622,-500.0,0.00013698,2]
[419052821,1774813843633,-500.0,0.00013698,2]
[419052823,1774813843643,-500.0,0.00013698,2]
[419052825,1774813843653,-500.0,0.00013698,2]
[419052827,1774813843663,-500.0,0.00013698,2]
[419052829,1774813843673,-500.0,0.00013698,2]
[419052833,1774813843694,-500.0,0.00013698,2]
[419052835,1774813843705,-500.0,0.00013698,2]
[419052837,1774813843715,-500.0,0.00013698,2]
[419052839,1774813843725,-500.0,0.00013698,2]
[419052841,1774813843735,-500.0,0.00013698,2]
[419052843,1774813843745,-500.0,0.00013698,2]
[419052845,1774813843755,-500.0,0.00013698,2]
[419052847,1774813843765,-500.0,0.00013698,2]
[419052849,1774813843775,-500.0,0.00013698,2]
[419052851,1774813843785,-500.0,0.00013698,2]
[419052853,1774813843795,-500.0,0.00013698,2]
[419052855,1774813843806,-504.98451162,0.00013698,2]
[419052857,1774813843815,-835.43,0.00013698,2]
[419052859,1774813843825,-835.43,0.00013698,2]
[419052861,1774813843835,-573.16,0.00013698,2]
[419052863,1774813843845,-835.43,0.00013698,2]
[419052865,1774813843855,-573.16,0.00013698,2]
[419052867,1774813843865,-573.16,0.00013698,2]
[419052869,1774813843876,-835.43,0.00013698,2]
[419052871,1774813843886,-573.16,0.00013698,2]
[419052873,1774813843896,-835.43,0.00013698,2]
[419052875,1774813843907,-573.16,0.00013698,2]
[419052878,1774813843920,-835.43,0.00013698,2]
[419052880,1774813843931,-573.16,0.00013698,2]
[419052882,1774813843941,-835.43,0.00013698,2]
[419052884,1774813843951,-573.16,0.00013698,2]
[419052886,1774813843961,-835.43,0.00013698,2]
[419052888,1774813843971,-835.43,0.00013698,2]
[419052890,1774813843982,-573.16,0.00013698,2]
[419052892,1774813843992,-835.43,0.00013698,2]
[419052894,1774813844002,-573.16,0.00013698,2]
[419052896,1774813844012,-835.43,0.00013698,2]
[419052898,1774813844022,-573.16,0.00013698,2]
[419052900,1774813844032,-573.16,0.00013698,2]
[419052902,1774813844042,-573.16,0.00013698,2]
[419052903,1774813844053,-835.43,0.00013698,2]
[419052905,1774813844063,-573.16,0.00013698,2]
[419052908,1774813844073,-835.43,0.00013698,2]
[419052910,1774813844083,-573.16,0.00013698,2]
[419052912,1774813844093,-835.43,0.00013698,2]
[419052914,1774813844102,-573.16,0.00013698,2]
[419052916,1774813844112,-573.16,0.00013698,2]
[419052918,1774813844121,-835.43,0.00013698,2]
[419052920,1774813844130,-573.16,0.00013698,2]
[419052922,1774813844141,-835.43,0.00013698,2]
[419052924,1774813844150,-835.43,0.00013698,2]
[419052926,1774813844159,-500.0,0.00013698,2]
[419052928,1774813844168,-500.0,0.00013698,2]
[419052930,1774813844178,-500.0,0.00013698,2]
[419052932,1774813844188,-551.92950635,0.00013698,2]
[419052934,1774813844197,-500.0,0.00013698,2]
[419052936,1774813844207,-500.0,0.00013698,2]
[419052938,1774813844216,-500.0,0.00013698,2]
[419052940,1774813844225,-500.0,0.00013698,2]
[419052942,1774813844235,-500.0,0.00013698,2]
[419052944,1774813844244,-500.0,0.00013698,2]
[419052946,1774813844253,-500.0,0.00013698,2]
[419052948,1774813844262,-500.0,0.00013698,2]
[419052950,1774813844272,-500.0,0.00013698,2]
[419052952,1774813844281,-500.0,0.00013698,2]
[419052955,1774813844290,-500.0,0.00013698,2]
[419052957,1774813844299,-500.0,0.00013698,2]
[419052959,1774813844309,-500.0,0.00013698,2]
[419052961,1774813844318,-500.0,0.00013698,2]
[419052963,1774813844328,-500.0,0.00013698,2]
[419052965,1774813844337,-500.0,0.00013698,2]
[419052967,1774813844346,-500.0,0.00013698,2]
[419052969,1774813844356,-500.0,0.00013698,2]
[419052971,1774813844365,-500.0,0.00013698,2]
[419052973,1774813844375,-500.0,0.00013698,2]
[419052975,1774813844384,-500.0,0.00013698,2]
[419052977,1774813844393,-500.0,0.00013698,2]
[419052979,1774813844402,-500.0,0.00013698,2]
[419052981,1774813844412,-500.0,0.00013698,2]
[419052983,1774813844421,-500.0,0.00013698,2]
[419052985,1774813844431,-500.0,0.00013698,2]
[419052987,1774813844440,-500.0,0.00013698,2]
[419052989,1774813844450,-500.0,0.00013698,2]
[419052991,1774813844459,-500.0,0.00013698,2]
[419052993,1774813844469,-500.0,0.00013698,2]
[419052995,1774813844478,-500.0,0.00013698,2]
[419052997,1774813844487,-500.0,0.00013698,2]
[419052999,1774813844497,-500.0,0.00013698,2]
[419053001,1774813844506,-500.0,0.00013698,2]
[419053004,1774813844520,-500.0,0.00013698,2]
[419053006,1774813844530,-500.0,0.00013698,2]
[419053008,1774813844539,-329.44503174,0.00013698,2]
[419053010,1774813844549,-500.0,0.00013698,2]
[419053012,1774813844558,-500.0,0.00013698,2]
[419053014,1774813844568,-500.0,0.00013698,2]
[419053016,1774813844577,-500.0,0.00013698,2]
[419053018,1774813844586,-500.0,0.00013698,2]
[419053020,1774813844595,-500.0,0.00013698,2]
[419053022,1774813844605,-500.0,0.00013698,2]
[419053024,1774813844614,-500.0,0.00013698,2]
[419053026,1774813844623,-381.48037858,0.00013698,2]
[419053028,1774813844632,-500.0,0.00013698,2]
[419053030,1774813844642,-500.0,0.00013698,2]
[419053032,1774813844652,-500.0,0.00013698,2]
[419053034,1774813844660,-500.0,0.00013698,2]
[419053036,1774813844671,-500.0,0.00013698,2]
[419053038,1774813844680,-500.0,0.00013698,2]
[419053040,1774813844690,-500.0,0.00013698,2]
[419053042,1774813844699,-500.0,0.00013698,2]
[419053044,1774813844708,-500.0,0.00013698,2]
[419053046,1774813844718,-500.0,0.00013698,2]
[419053048,1774813844727,-500.0,0.00013698,2]
[419053050,1774813844738,-500.0,0.00013698,2]
[419053052,1774813844748,-500.0,0.00013698,2]
[419053054,1774813844758,-500.0,0.00013698,2]
[419053056,1774813844767,-500.0,0.00013698,2]
[419053058,1774813844777,-500.0,0.00013698,2]
[419053060,1774813844786,-229.43459126,0.00013698,2]
[419053062,1774813844796,-500.0,0.00013698,2]
[419053063,1774813844805,-500.0,0.00013698,2]
[419053064,1774813844815,-500.0,0.00013698,2]
[419053065,1774813844824,-500.0,0.00013698,2]
[419053066,1774813844834,-500.0,0.00013698,2]
[419053067,1774813844844,-500.0,0.00013698,2]
[419053068,1774813844853,-500.0,0.00013698,2]
[419053069,1774813844863,-500.0,0.00013698,2]
[419053070,1774813844873,-500.0,0.00013698,2]
[419053072,1774813844882,-500.0,0.00013698,2]
[419053074,1774813844892,-500.0,0.00013698,2]
[419053076,1774813844902,-500.0,0.00013698,2]
[419053078,1774813844912,-500.0,0.00013698,2]
[419053080,1774813844923,-500.0,0.00013698,2]
[419053082,1774813844933,-500.0,0.00013698,2]
[419053085,1774813844943,-500.0,0.00013698,2]
[419053087,1774813844953,-500.0,0.00013698,2]
[419053089,1774813844963,-500.0,0.00013698,2]
[419053091,1774813844972,-500.0,0.00013698,2]
[419053093,1774813844982,-500.0,0.00013698,2]
[419053095,1774813844992,-500.0,0.00013698,2]
[419053097,1774813845002,-628.28,0.00013698,2]
[419053099,1774813845014,-500.0,0.00013698,2]
[419053101,1774813845024,-500.0,0.00013698,2]
[419053103,1774813845034,-500.0,0.00013698,2]
[419053105,1774813845045,-500.0,0.00013698,2]
[419053107,1774813845056,-500.0,0.00013698,2]
[419053115,1774813845496,-500.0,0.00013698,2]
[419053116,1774813845507,-500.0,0.00013698,2]
[419053117,1774813845517,-500.0,0.00013698,2]
[419053118,1774813845526,-500.0,0.00013698,2]
[419053119,1774813845537,-500.0,0.00013698,2]
[419053120,1774813845546,-500.0,0.00013698,2]
[419053121,1774813845555,-500.0,0.00013698,2]
[419053122,1774813845566,-500.0,0.00013698,2]
[419053123,1774813845577,-500.0,0.00013698,2]
[419053124,1774813845587,-500.0,0.00013698,2]
[419053125,1774813845596,-500.0,0.00013698,2]
[419053126,1774813845605,-500.0,0.00013698,2]
[419053127,1774813845614,-500.0,0.00013698,2]
[419053128,1774813845623,-500.0,0.00013698,2]
[419053129,1774813845631,-500.0,0.00013698,2]
[419053130,1774813845640,-500.0,0.00013698,2]
[419053131,1774813845649,-500.0,0.00013698,2]
[419053132,1774813845659,-500.0,0.00013698,2]
[419053133,1774813845668,-500.0,0.00013698,2]
[419053134,1774813845677,-500.0,0.00013698,2]
[419053135,1774813845686,-500.0,0.00013698,2]
[419053136,1774813845695,-476.77743701,0.00013698,2]
[419053137,1774813845707,-500.0,0.00013698,2]
[419053138,1774813845718,-500.0,0.00013698,2]
[419053139,1774813845728,-500.0,0.00013698,2]
[419053140,1774813845739,-500.0,0.00013698,2]
[419053141,1774813845750,-500.0,0.00013698,2]
[419053142,1774813845759,-500.0,0.00013698,2]
[419053143,1774813845769,-500.0,0.00013698,2]
[419053144,1774813845779,-502.37596608,0.00013698,2]
[419053145,1774813845788,-150.0,0.00013699,2]
[419053146,1774813845799,-150.0,0.00013699,2]
[419053147,1774813845811,-200.0,0.00013699,2]
[419053148,1774813845820,-785.52,0.00013699,2]